bitfinex-derivatives/quotes_SOLF0:USTF0_20250524
["timestamp","ask_amount","ask_price","bid_price","bid_amount"]
[1748126030354,5.26448795,176.24,176.2,3.34236393]
[1748126030552,5.26448795,176.24,176.2,119.44236393]
[1748126030751,5.26448795,176.24,176.2,125.11516393]
[1748126030952,5.30714637,176.24,176.2,125.15284263]
[1748126031154,5.30714637,176.24,176.22,5.6724]
[1748126031650,0.04265842,176.24,176.23,5.6721]
[1748126033560,5.26448795,176.28,176.26,3.34236393]
[1748126033765,5.26448795,176.31,176.27,115.94]
[1748126034063,5.26448795,176.31,176.28,115.94]
[1748126034449,5.30542163,176.31,176.28,115.9789149]
[1748126035858,0.04093368,176.31,176.28,115.9789149]
[1748126036346,0.04093368,176.31,176.28,121.6493149]
[1748126036758,0.04093368,176.31,176.29,5.6702]
[1748126040062,0.04093368,176.31,176.28,115.9789149]
[1748126041262,5.6702,176.29,176.28,115.9789149]
[1748126043367,5.6702,176.29,176.28,0.0389149]
[1748126044767,5.71073368,176.31,176.28,0.0389149]
[1748126045069,0.04093368,176.31,176.28,0.0389149]
[1748126045257,0.04093368,176.31,176.29,5.6701]
[1748126048667,0.04093368,176.31,176.3,5.6699]
[1748126049477,0.04093368,176.31,176.29,5.6701]
[1748126049955,0.04093368,176.31,176.29,121.5501]
[1748126051468,0.04093368,176.31,176.3,5.6699]
[1748126059077,0.04093368,176.31,176.28,0.0389149]
[1748126059778,5.6702,176.3,176.28,0.0389149]
[1748126060477,5.6702,176.29,176.28,0.0389149]
[1748126063186,0.04093368,176.31,176.28,0.0389149]
[1748126063681,0.04093368,176.31,176.29,5.67]
[1748126064581,5.71053368,176.31,176.28,5.7093149]
[1748126066382,0.04093368,176.31,176.28,5.7093149]
[1748126067184,5.71053368,176.31,176.28,5.7093149]
[1748126067380,0.04093368,176.31,176.29,5.6702]
[1748126073594,5.30542163,176.31,176.29,5.6702]
[1748126074688,5.30542163,176.31,176.28,5.7093149]
[1748126075389,5.26448795,176.3,176.29,5.6702]
[1748126077789,5.30542163,176.31,176.3,5.6699]
[1748126079101,5.30542163,176.31,176.29,5.6701]
[1748126080385,5.30542163,176.31,176.28,0.0389149]
[1748126080584,5.6702,176.29,176.28,0.0389149]
[1748126081294,5.67,176.3,176.28,0.0389149]
[1748126082297,7.03852206,176.29,176.28,0.0389149]
[1748126083790,7.03852206,176.29,176.28,5.7094149]
[1748126084599,5.26501823,176.29,176.28,5.7094149]
[1748126089196,5.26501823,176.3,176.28,5.7094149]
[1748126091197,5.26501823,176.3,176.29,5.6702]
[1748126093898,5.26501823,176.3,176.28,0.0389149]
[1748126094698,5.6702,176.29,176.28,0.0389149]
[1748126095700,7.03852206,176.3,176.28,0.0389149]
[1748126095701,12.70852206,176.3,176.28,0.0389149]
[1748126095898,7.03852206,176.3,176.28,0.0389149]
[1748126097202,12.70862206,176.3,176.28,0.0389149]
[1748126098701,7.03852206,176.3,176.28,0.0389149]
[1748126098907,5.6702,176.29,176.28,0.0389149]
[1748126099507,5.6716,176.25,176.23,115.56]
[1748126100403,10.93471886,176.26,176.23,121.2321]
[1748126100601,10.97237656,176.26,176.23,121.27240439]
[1748126100798,10.97237656,176.26,176.23,115.60030439]
[1748126101408,5.30117656,176.26,176.23,115.60030439]
[1748126103114,5.26351886,176.24,176.23,121.27240439]
[1748126105613,5.30117656,176.26,176.25,5.6715]
[1748126107716,0.0376577,176.26,176.25,5.6715]
[1748126108617,5.77e-05,176.26,176.25,5.6715]
[1748126109829,5.77e-05,176.26,176.23,115.62030439]
[1748126111024,5.77e-05,176.26,176.25,5.6715]
[1748126116228,5.77e-05,176.26,176.24,5.6717]
[1748126116431,5.77e-05,176.26,176.23,115.62030439]
[1748126117939,5.77e-05,176.26,176.25,5.6715]
[1748126129456,5.26351886,176.32,176.31,5.6695]
[1748126130143,5.26351886,176.32,176.3,121.1099]
[1748126131255,5.26351886,176.32,176.31,5.6695]
[1748126132755,5.30457075,176.33,176.31,5.6695]
[1748126135056,5.30457075,176.33,176.32,5.6692]
[1748126135258,5.30457075,176.33,176.3,115.44]
[1748126136557,5.30457075,176.33,176.31,5.6694]
[1748126140460,5.30457075,176.33,176.32,5.6692]
[1748126144564,0.04105189,176.33,176.32,5.6692]
[1748126154072,0.04105189,176.33,176.3,115.44]
[1748126154272,0.04105189,176.33,176.3,115.4]
[1748126154475,0.04105189,176.33,176.29,0.04307197]
[1748126154775,0.04105189,176.33,176.29,115.30307197]
[1748126155271,0.04105189,176.33,176.3,5.6697]
[1748126156474,5.71005189,176.33,176.3,5.6697]
[1748126156774,10.97357075,176.33,176.3,5.6697]
[1748126157075,10.97357075,176.33,176.29,120.97317197]
[1748126157271,10.97357075,176.33,176.29,115.30307197]
[1748126158586,10.97357075,176.33,176.3,5.6697]
[1748126161187,10.97357075,176.33,176.29,120.97317197]
[1748126161486,5.6693,176.32,176.29,120.97317197]
[1748126163585,10.93281886,176.32,176.29,120.97317197]
[1748126163791,5.26351886,176.32,176.29,120.97317197]
[1748126163981,5.26351886,176.32,176.29,115.30307197]
[1748126164374,5.6695,176.31,176.29,115.30307197]
[1748126165184,10.93281886,176.32,176.29,120.97327197]
[1748126165683,5.26351886,176.32,176.3,5.6698]
[1748126166086,5.26351886,176.32,176.29,115.30307197]
[1748126166288,5.26351886,176.32,176.31,5.6695]
[1748126167483,5.30457075,176.33,176.32,5.6692]
[1748126169586,0.04105189,176.33,176.32,5.6692]
[1748126174886,5.189e-05,176.33,176.32,5.6692]
[1748126177394,5.26351886,176.37,176.36,5.6679]
[1748126177594,5.26351886,176.37,176.36,120.9279]
[1748126178093,5.26351886,176.39,176.38,5.6673]
[1748126180094,0.03953081,176.4,176.38,5.6673]
[1748126181996,0.03953081,176.4,176.37,5.70709465]
[1748126183690,0.03953081,176.4,176.38,5.6672]
[1748126185797,0.03953081,176.4,176.39,5.667]
[1748126192097,0.03953081,176.4,176.37,0.03959465]
[1748126192303,3.33187876,176.39,176.37,0.03959465]
[1748126193402,8.99907876,176.39,176.37,0.03959465]
[1748126194504,10.96974967,176.4,176.37,5.70689465]
[1748126196406,5.70623081,176.4,176.37,5.70689465]
[1748126197505,0.03953081,176.4,176.37,0.03959465]
[1748126198099,0.03953081,176.4,176.39,5.667]
[1748126198295,0.03953081,176.4,176.37,0.03959465]
[1748126198900,5.70653081,176.4,176.37,0.03959465]
[1748126199507,5.6671,176.39,176.37,0.03959465]
[1748126201811,10.96974967,176.4,176.37,5.70719465]
[1748126203113,5.667,176.39,176.37,0.03959465]
[1748126204114,5.667,176.39,176.37,5.70719465]
[1748126204411,10.96984967,176.4,176.37,5.70719465]
[1748126206014,5.6671,176.39,176.37,0.03959465]
[1748126208814,10.96984967,176.4,176.37,5.70709465]
[1748126211121,5.26351886,176.39,176.37,5.70709465]
[1748126212722,5.26351886,176.39,176.38,5.6673]
[1748126218026,7.07805287,176.4,176.38,5.6673]
[1748126218827,7.07805287,176.4,176.37,5.70709465]
[1748126219827,12.74485287,176.4,176.37,5.70709465]
[1748126220128,5.26218421,176.38,176.37,5.70709465]
[1748126223128,5.26218421,176.38,176.37,0.03959465]
[1748126225532,7.03852206,176.39,176.37,0.03959465]
[1748126225834,7.03852206,176.39,176.37,5.70719465]
[1748126226026,7.03852206,176.39,176.37,0.03959465]
[1748126226835,7.03852206,176.39,176.38,5.6673]
[1748126227438,2.206e-05,176.39,176.38,5.6673]
[1748126227634,0.03953081,176.4,176.37,3.37025799]
[1748126227635,5.30333754,176.4,176.39,5.667]
[1748126227832,5.30333754,176.4,176.39,8.99766334]
[1748126230050,0.03953081,176.4,176.39,8.99766334]
[1748126244665,0.03953081,176.4,176.39,5.667]
[1748126254271,0.03953081,176.4,176.39,8.99766334]
[1748126258572,0.03953081,176.4,176.38,5.6672]
[1748126258871,0.03953081,176.4,176.37,111.07025799]
[1748126259675,0.03953081,176.4,176.39,5.667]
[1748126264370,0.03953081,176.4,176.39,8.99766334]
[1748126265476,0.03953081,176.4,176.39,123.71766334]
[1748126266975,0.03953081,176.4,176.39,120.387]
[1748126281682,0.03953081,176.4,176.37,0.03959465]
[1748126282182,0.03953081,176.4,176.39,5.667]
[1748126282874,0.03953081,176.4,176.37,0.03959465]
[1748126283088,10.37252164,176.4,176.35,114.56]
[1748126283486,5.6671,176.39,176.36,5.6677]
[1748126283684,5.6671,176.39,176.35,114.56]
[1748126283990,5.6678,176.37,176.35,0.04251383]
[1748126284687,5.6678,176.37,176.34,5.6684]
[1748126285090,10.92141854,176.37,176.34,5.6684]
[1748126285485,10.92141854,176.37,176.31,117.89305531]
[1748126285486,5.6679,176.36,176.33,5.6689]
[1748126285682,3.33305531,176.33,176.26,3.2044752]
[1748126285987,0.03858314,176.31,176.28,0.0410845]
[1748126286890,0.03858314,176.31,176.28,5.7115845]
[1748126287276,3.37163845,176.31,176.28,0.0410845]
[1748126287683,0.03858314,176.31,176.28,0.0410845]
[1748126288283,0.03858314,176.31,176.28,5.7112845]
[1748126288485,0.03858314,176.31,176.28,0.0410845]
[1748126289792,0.03858314,176.31,176.29,5.6701]
[1748126291797,0.03858314,176.31,176.3,5.6699]
[1748126293889,0.03858314,176.31,176.29,5.6701]
[1748126294396,0.03858314,176.31,176.3,5.6699]
[1748126299905,0.03858314,176.31,176.29,5.6701]
[1748126300105,0.03858314,176.31,176.28,0.0410845]
[1748126300498,5.70828314,176.31,176.28,0.0410845]
[1748126301813,5.70828314,176.31,176.28,5.7115845]
[1748126303307,5.70828314,176.31,176.28,0.0410845]
[1748126304303,5.70828314,176.31,176.28,5.7115845]
[1748126306711,5.70828314,176.31,176.28,0.0410845]
[1748126307311,0.03858314,176.31,176.28,0.0410845]
[1748126308211,5.6698,176.3,176.28,0.0410845]
[1748126308812,5.6702,176.29,176.28,0.0410845]
[1748126318019,5.6699,176.3,176.28,0.0410845]
[1748126318221,0.03858314,176.31,176.28,0.0410845]
[1748126318821,0.03858314,176.31,176.29,5.6702]
[1748126319013,0.03858314,176.31,176.28,0.0410845]
[1748126319715,0.03858314,176.31,176.29,5.6699]
[1748126323022,0.03858314,176.31,176.28,0.0410845]
[1748126323221,3.33584885,176.3,176.28,0.0410845]
[1748126323427,5.6712,176.26,176.22,114.48]
[1748126323922,3.8284,176.3,176.22,114.48]
[1748126324418,0.04353107,176.28,176.24,0.04235671]
[1748126324623,5.6709,176.27,176.24,0.04235671]
[1748126325322,5.6709,176.27,176.24,5.71395671]
[1748126326328,5.29714961,176.28,176.24,0.04235671]
[1748126327027,0.04353107,176.28,176.24,0.04235671]
[1748126327326,0.04353107,176.28,176.25,5.6714]
[1748126329228,10.96764961,176.28,176.25,5.6714]
[1748126333039,5.29714961,176.28,176.25,5.6714]
[1748126337932,5.25361854,176.27,176.25,5.6714]
[1748126340434,5.25361854,176.27,176.26,5.6711]
[1748126341939,5.29714961,176.28,176.26,5.6711]
[1748126342135,5.29714961,176.28,176.27,5.6708]
[1748126344441,5.29714961,176.28,176.26,5.671]
[1748126345740,5.29714961,176.28,176.27,5.6708]
[1748126346424,5.29714961,176.28,176.26,114.36]
[1748126346841,5.29714961,176.28,176.27,5.6708]
[1748126348139,3.107e-05,176.28,176.27,5.6708]
[1748126348328,3.107e-05,176.28,176.27,9.4586]
[1748126349537,5.25361854,176.3,176.27,9.4586]
[1748126349538,4.961e-05,176.3,176.29,5.6702]
[1748126349731,6.99993552,176.36,176.27,3.7878]
[1748126349938,6.99993552,176.36,176.29,3.33582207]
[1748126350235,6.99993552,176.36,176.3,114.36]
[1748126350641,0.04025337,176.35,176.31,0.03655217]
[1748126352544,0.04025337,176.35,176.33,5.6687]
[1748126352846,0.04025337,176.35,176.31,0.03655217]
[1748126353547,5.6686,176.34,176.31,0.03655217]
[1748126355544,5.6686,176.34,176.31,5.70595217]
[1748126358745,5.70855337,176.35,176.32,5.6692]
[1748126360753,5.70855337,176.35,176.31,5.70595217]
[1748126361655,0.04025337,176.35,176.31,0.03655217]
[1748126362351,3.88605337,176.35,176.31,0.03655217]
[1748126362657,10.88598889,176.35,176.31,0.03655217]
[1748126362848,5.6692,176.32,176.31,0.03655217]
[1748126378872,3.33507324,176.33,176.31,0.03655217]
[1748126379771,9.00417324,176.33,176.31,0.03655217]
[1748126384476,0.04025337,176.35,176.31,0.03655217]
[1748126385479,5.70865337,176.35,176.31,0.03655217]
[1748126386173,5.70865337,176.35,176.31,5.70585217]
[1748126387483,5.70865337,176.35,176.32,5.6691]
[1748126387673,0.04025337,176.35,176.31,0.03655217]
[1748126387979,0.04025337,176.35,176.32,5.6691]
[1748126388278,5.70845337,176.35,176.32,5.6691]
[1748126390481,6.99993552,176.34,176.32,5.6691]
[1748126393081,7.04018889,176.35,176.32,5.6691]
[1748126393682,12.70848889,176.35,176.32,5.6691]
[1748126395078,7.04018889,176.35,176.31,0.03655217]
[1748126395282,3.33507324,176.34,176.31,0.03655217]
[1748126395784,5.6689,176.33,176.31,0.03655217]
[1748126399483,5.6689,176.33,176.31,5.70605217]
[1748126399786,5.6692,176.32,176.31,0.03655217]
[1748126400082,6.99993552,176.34,176.32,5.6691]
[1748126400384,12.66853552,176.34,176.31,0.03655217]
[1748126400686,6.99993552,176.34,176.31,0.03655217]
[1748126400982,5.6686,176.34,176.31,5.70595217]
[1748126403088,12.70848889,176.35,176.32,5.6692]
[1748126403284,7.04018889,176.35,176.31,0.03655217]
[1748126404389,7.04018889,176.35,176.32,5.6691]
[1748126404586,7.04018889,176.35,176.31,0.03655217]
[1748126404786,10.37526213,176.35,176.31,0.03655217]
[1748126405086,16.04366213,176.35,176.31,5.70585217]
[1748126405784,16.04366213,176.35,176.32,5.6692]
[1748126411780,7.04018889,176.35,176.34,5.6686]
[1748126412094,7.04018889,176.35,176.31,0.03655217]
[1748126412287,0.04025337,176.35,176.33,5.6689]
[1748126412493,0.04025337,176.35,176.31,0.03655217]
[1748126412896,0.04025337,176.35,176.32,5.6691]
[1748126413193,5.70855337,176.35,176.32,5.6691]
[1748126414091,0.04025337,176.35,176.31,0.03655217]
[1748126414295,0.04025337,176.35,176.33,5.6688]
[1748126416397,5.2444085,176.34,176.33,5.6688]
[1748126417499,5.2444085,176.34,176.32,5.6691]
[1748126418495,5.2444085,176.34,176.33,5.6689]
[1748126420703,8.5e-06,176.34,176.33,7.6729]
[1748126420892,6.99993552,176.36,176.33,109.764]
[1748126421097,10.53737141,176.39,176.35,3.33507324]
[1748126421391,6.99011003,176.4,176.37,3.33507324]
[1748126421901,7.03120053,176.4,176.37,3.37541593]
[1748126422302,7.03120053,176.4,176.39,5.667]
[1748126423198,0.0410905,176.4,176.39,5.667]
[1748126423503,0.0410905,176.4,176.38,5.6672]
[1748126424211,0.0410905,176.4,176.39,5.667]
[1748126424499,0.0410905,176.4,176.37,0.04034269]
[1748126424802,0.0410905,176.4,176.37,3.37541593]
[1748126425702,0.0410905,176.4,176.37,0.04034269]
[1748126425896,3.33507324,176.39,176.37,0.04034269]
[1748126426099,5.6685,176.35,176.31,5.6695]
[1748126426399,3.33507324,176.34,176.29,117.2044752]
[1748126426602,3.33507324,176.32,176.29,3.2044752]
[1748126426807,3.33507324,176.3,176.29,3.2044752]
[1748126427201,3.33507324,176.3,176.26,4.23055979]
[1748126427505,3.33507324,176.27,176.19,8.47211181]
[1748126427705,121.14578125,176.3,176.19,8.47211181]
[1748126427915,115.9299,176.3,176.2,114.02]
[1748126428095,115.9299,176.3,176.2,116.044]
[1748126428096,114.02,176.3,176.2,116.044]
[1748126428301,0.04210729,176.27,176.23,0.03817828]
[1748126428601,0.04210729,176.27,176.23,0.03860737]
[1748126429403,5.71300729,176.27,176.23,0.03860737]
[1748126429703,0.04210729,176.27,176.23,0.03860737]
[1748126429903,5.21588125,176.25,176.15,1.9285]
[1748126430098,114.02,176.24,176.15,1.9285]
[1748126430293,5.21588125,176.22,176.12,114.02]
[1748126430803,489.92,176.31,176.14,5.21588125]
[1748126431106,0.03998191,176.24,176.21,0.04127912]
[1748126431307,0.03654562,176.24,176.21,114.08127912]
[1748126431803,0.03654562,176.24,176.23,5.6721]
[1748126432908,0.03654562,176.24,176.21,114.08127912]
[1748126433100,0.03654562,176.24,176.21,0.04127912]
[1748126435610,5.25242687,176.24,176.15,116.8821]
[1748126435911,5.6734,176.2,176.14,5.675]
[1748126436214,114.96,176.23,176.12,116.9766]
[1748126436507,114.96,176.23,176.16,5.6744]
[1748126436508,5.6727,176.22,176.16,5.6744]
[1748126436708,0.04194909,176.21,176.12,118.9031]
[1748126438513,5.25783034,176.21,176.12,118.9031]
[1748126439712,5.71494909,176.21,176.12,118.9031]
[1748126440211,5.71494909,176.21,176.15,5.6744]
[1748126440212,5.6731,176.2,176.15,5.6744]
[1748126440412,5.6731,176.2,176.12,118.9031]
[1748126441416,5.6731,176.2,176.14,5.6747]
[1748126441612,5.6731,176.2,176.12,118.9031]
[1748126442214,5.6734,176.19,176.12,118.9031]
[1748126442516,0.03814966,176.17,176.12,118.9031]
[1748126443018,0.03814966,176.17,176.14,5.6747]
[1748126443213,0.03814966,176.17,176.12,118.9031]
[1748126443410,5.25403091,176.17,176.05,115.0]
[1748126443721,0.03644112,176.13,176.07,5.6769]
[1748126443909,0.03644112,176.13,176.03,115.0]
[1748126444214,0.03644112,176.13,176.08,5.6769]
[1748126444513,0.03644112,176.13,176.03,115.0]
[1748126444514,0.03644112,176.13,176.07,115.0]
[1748126444711,0.03644112,176.13,176.08,115.0]
[1748126445210,0.03644112,176.13,176.09,5.6764]
[1748126445410,0.03644112,176.13,176.08,115.0]
[1748126445613,115.02,176.25,176.09,11.03328125]
[1748126445819,115.02,176.25,176.12,5.21588125]
[1748126446020,16.20917141,176.24,176.13,115.02]
[1748126446218,5.6718,176.24,176.13,115.02]
[1748126446414,115.02,176.25,176.13,115.02]
[1748126446613,5.6714,176.26,176.21,5.6727]
[1748126446916,0.03958217,176.25,176.22,0.0370524]
[1748126447719,5.71128217,176.25,176.22,0.0370524]
[1748126448319,0.03958217,176.25,176.22,0.0370524]
[1748126449016,5.6721,176.23,176.22,5.24e-05]
[1748126450521,5.674,176.17,176.13,115.02]
[1748126451421,5.71448274,176.17,176.13,115.02]
[1748126451625,5.6747,176.15,176.12,1.9812]
[1748126451815,0.04048274,176.17,176.0,8.50799101]
[1748126452015,0.04318133,176.1,176.01,224.8564]
[1748126453221,0.04318133,176.1,176.08,5.6768]
[1748126453419,0.04318133,176.1,176.08,115.02]
[1748126453615,116.9209,176.22,176.08,115.02]
[1748126453922,116.9209,176.22,176.09,111.7395]
[1748126454121,5.674,176.18,176.13,5.6751]
[1748126454316,5.674,176.18,176.13,115.02]
[1748126454516,115.02,176.22,176.13,115.02]
[1748126454717,0.03958128,176.19,176.16,0.03983048]
[1748126455825,5.6757,176.12,176.09,1.9031]
[1748126456323,115.04,176.18,176.09,7.5797]
[1748126456725,0.03855134,176.15,176.08,115.04]
[1748126457023,0.03855134,176.15,176.07,115.04]
[1748126457319,0.04272331,176.13,176.07,115.04]
[1748126457821,0.04272331,176.13,176.03,1.9]
[1748126458022,0.04272331,176.13,176.04,115.04]
[1748126458625,0.04272331,176.13,176.1,5.6762]
[1748126458925,0.04272331,176.13,176.08,115.04]
[1748126459124,0.04272331,176.13,176.05,117.0842]
[1748126459335,0.04272331,176.13,176.05,2.0442]
[1748126459928,0.04272331,176.13,176.08,5.6767]
[1748126460531,0.04272331,176.13,176.07,115.04]
[1748126461227,0.04272331,176.13,176.1,5.6763]
[1748126461432,0.04272331,176.13,176.08,115.04]
[1748126461931,0.04272331,176.13,176.05,2.0442]
[1748126463423,5.6769,176.09,176.05,2.0442]
[1748126463731,0.03852692,176.09,176.05,2.0442]
[1748126464732,5.6772,176.08,176.05,2.0442]
[1748126464921,0.03852692,176.09,176.05,2.0442]
[1748126465121,0.03852692,176.09,176.04,120.1]
[1748126465833,5.6772,176.08,176.04,120.1]
[1748126466126,0.03852692,176.09,176.04,120.1]
[1748126466527,5.71542692,176.09,176.04,120.1]
[1748126466734,0.03852692,176.09,176.02,5.6788]
[1748126466924,0.03852692,176.09,176.0,122.1382]
[1748126467420,120.14,176.08,176.0,122.1382]
[1748126467627,5.6783,176.04,176.0,122.1382]
[1748126467826,5.71939146,176.04,176.0,122.1382]
[1748126468431,0.04109146,176.04,176.0,122.1382]
[1748126468730,0.04109146,176.04,175.88,490.58]
[1748126468929,8.13e-05,175.98,175.97,5.6802]
[1748126469229,120.14,176.08,175.97,125.8202]
[1748126469429,5.6792,176.01,175.97,125.8202]
[1748126469932,5.7171523,176.01,175.97,120.18189702]
[1748126470124,0.0379523,176.01,175.97,120.18189702]
[1748126470426,0.0379523,176.01,175.97,0.04189702]
[1748126470627,5.6795,176.0,175.97,0.04189702]
[1748126471035,0.0379523,176.01,175.97,0.04189702]
[1748126471226,0.0379523,176.01,175.97,120.18189702]
[1748126471628,5.6776,176.06,175.97,120.18189702]
[1748126471927,1.8864,176.07,175.97,120.18189702]
[1748126472234,7.5638,176.07,176.02,5.6786]
[1748126472627,0.04248765,176.06,176.03,0.04225649]
[1748126473231,12.56837936,176.13,176.03,0.04225649]
[1748126473533,6.89287936,176.13,176.09,5.6763]
[1748126473736,6.89287936,176.13,176.06,120.16]
[1748126474234,127.05287936,176.19,176.08,0.04023547]
[1748126474430,5.6739,176.18,176.07,1.9929]
[1748126474731,6.89287936,176.19,176.07,1.9929]
[1748126475328,0.0384953,176.15,176.11,0.04089214]
[1748126475529,12.56637936,176.19,176.13,5.6752]
[1748126476336,5.6737,176.18,176.13,5.6752]
[1748126476636,0.04274722,176.17,176.14,0.04132823]
[1748126477737,5.71674722,176.17,176.14,0.04132823]
[1748126478037,0.04274722,176.17,176.14,0.04132823]
[1748126478232,5.6746,176.15,176.14,0.04132823]
[1748126479732,0.04274722,176.17,176.14,0.04132823]
[1748126480238,5.6733,176.19,176.14,0.04132823]
[1748126480442,120.12,176.23,176.14,0.04132823]
[1748126481228,0.04132696,176.2,176.14,0.04132823]
[1748126481939,0.04132696,176.2,176.14,120.16132823]
[1748126482536,0.04132696,176.2,176.15,1.9834]
[1748126482733,5.6746,176.15,176.14,120.16132823]
[1748126483132,5.6746,176.15,176.14,0.04132823]
[1748126483440,5.68,176.15,176.0,124.36112426]
[1748126483631,122.0137,176.14,176.01,1.9834]
[1748126484340,0.04126815,176.09,176.06,0.0375373]
[1748126485237,5.6772,176.07,176.06,0.0375373]
[1748126486343,0.04126815,176.09,176.06,0.0375373]
[1748126486937,5.6772,176.07,176.06,0.0375373]
[1748126487640,5.6769,176.08,176.06,0.0375373]
[1748126487951,0.04126815,176.09,176.06,0.0375373]
[1748126488443,5.6772,176.07,176.06,0.0375373]
[1748126488940,5.71806815,176.09,176.06,0.0375373]
[1748126489142,0.04126815,176.09,176.06,0.0375373]
[1748126489537,5.6772,176.07,176.06,0.0375373]
[1748126495842,5.6772,176.07,176.06,3.73e-05]
[1748126496050,14.20320755,176.07,175.97,1.9165]
[1748126496250,1.9623,176.06,175.97,1.9165]
[1748126496547,123.52,176.05,175.97,1.9165]
[1748126496943,0.04035741,176.03,175.99,0.03699626]
[1748126498454,5.679,176.02,175.99,0.03699626]
[1748126500748,0.04035741,176.03,176.0,5.6794]
[1748126501147,0.04035741,176.03,175.99,123.55699626]
[1748126501450,0.04035741,176.03,175.99,129.23649626]
[1748126501755,0.04035741,176.03,175.99,123.55699626]
[1748126502653,0.04035741,176.03,176.02,5.6788]
[1748126502960,0.04035741,176.03,175.99,123.55699626]
[1748126503154,0.04035741,176.03,176.0,5.6792]
[1748126503457,0.04035741,176.03,175.99,0.03699626]
[1748126504452,5.6791,176.01,175.99,0.03699626]
[1748126504753,5.6794,176.0,175.99,0.03699626]
[1748126509762,0.04035741,176.03,175.99,0.03699626]
[1748126511863,5.6794,176.0,175.99,0.03699626]
[1748126517759,0.04035741,176.03,175.99,0.03699626]
[1748126518265,5.6794,176.0,175.99,0.03699626]
[1748126519162,5.6794,176.0,175.99,9.626e-05]
[1748126519465,8.52093824,176.01,175.87,2.0291]
[1748126519660,123.56,176.0,175.88,1.9018]
[1748126520261,0.04000871,175.96,175.92,0.04128963]
[1748126520656,0.04000871,175.96,175.95,5.681]
[1748126520862,0.04000871,175.96,175.92,0.04128963]
[1748126521666,0.04000871,175.96,175.95,5.681]
[1748126522359,10.87569255,176.01,175.92,0.04128963]
[1748126522360,5.19659255,176.01,175.92,0.04128963]
[1748126522761,5.6804,175.97,175.94,5.6813]
[1748126523164,2.0456,176.03,175.89,1.9525]
[1748126523364,0.0386746,175.98,175.94,0.0384538]
[1748126523859,5.6805,175.97,175.94,0.0384538]
[1748126524063,0.0386746,175.98,175.94,0.0384538]
[1748126525067,5.6808,175.96,175.94,0.0384538]
[1748126525370,0.0386746,175.98,175.94,0.0384538]
[1748126525668,5.681,175.95,175.94,0.0384538]
[1748126526072,5.6808,175.96,175.94,0.0384538]
[1748126526262,0.0386746,175.98,175.94,0.0384538]
[1748126527266,5.6805,175.97,175.94,0.0384538]
[1748126527467,0.0386746,175.98,175.94,0.0384538]
[1748126527762,5.6806,175.97,175.94,0.0384538]
[1748126527968,0.0386746,175.98,175.94,0.0384538]
[1748126528571,5.681,175.95,175.94,0.0384538]
[1748126529173,5.681,175.96,175.94,0.0384538]
[1748126529583,5.23526715,175.98,175.94,0.0384538]
[1748126529872,5.681,175.95,175.94,0.0384538]
[1748126530871,5.6808,175.96,175.94,0.0384538]
[1748126531971,5.681,175.95,175.94,0.0384538]
[1748126533273,5.19659255,175.97,175.94,0.0384538]
[1748126533774,5.681,175.96,175.94,0.0384538]
[1748126534273,0.0386746,175.98,175.94,0.0384538]
[1748126535077,5.6806,175.97,175.94,0.0384538]
[1748126535973,0.0386746,175.98,175.94,0.0384538]
[1748126536277,5.6805,175.97,175.94,0.0384538]
[1748126536777,5.6807,175.96,175.94,0.0384538]
[1748126538182,5.681,175.95,175.94,0.0384538]
[1748126538672,5.23526715,175.98,175.94,0.0384538]
[1748126539581,5.681,175.95,175.94,0.0384538]
[1748126544181,5.19659255,175.96,175.94,0.0384538]
[1748126545284,10.87719255,175.97,175.94,0.0384538]
[1748126545785,5.19659255,175.97,175.94,0.0384538]
[1748126546688,10.87699255,175.97,175.94,0.0384538]
[1748126546987,5.19659255,175.97,175.94,0.0384538]
[1748126547382,5.681,175.95,175.94,0.0384538]
[1748126553392,6.89287936,175.96,175.83,4.0733]
[1748126553393,5.6825,175.91,175.83,4.0733]
[1748126553789,5.6821,175.92,175.88,5.6833]
[1748126554091,6.89287936,175.96,175.87,123.54]
[1748126554286,0.04016009,175.93,175.9,0.04231361]
[1748126554487,5.21345468,175.91,175.9,0.04231361]
[1748126555592,5.21345468,175.91,175.9,5.72491361]
[1748126556090,0.04016009,175.93,175.91,5.682]
[1748126556289,0.04016009,175.93,175.9,0.04231361]
[1748126558192,0.04016009,175.93,175.92,5.682]
[1748126559288,0.04016009,175.93,175.92,129.762]
[1748126559794,5.6802,175.98,175.93,5.6814]
[1748126559993,5.6802,175.98,175.92,124.08]